[Event "WR Chess Masters 2023"]
[Site "Duesseldorf"]
[Date "2023.02.17"]
[Round "2.5"]
[White "Gukesh D"]
[Black "Praggnanandhaa R"]
[Result "1-0"]
[ECO "C54"]
[WhiteElo "2718"]
[BlackElo "2690"]
[Annotator "TA"]
[PlyCount "63"]
[EventDate "2023.02.16"]
[EventCountry "GER"]
[SourceTitle "playchess.com"]
[Source "ChessBase"]
[SourceQuality "1"]
[TimeControl "40/7200:20/3600:900+30"]

{[%evp 21,63,0,0,0,0,-5,39,0,0,0,0,-4,-29,-34,-34,-23,0,0,0,10,10,9,6,10,47,50,48,42,44,62,48,35,29,7,48,58,111,108,115,107,29988,29989,29989,29990]} 1. e4 {[%emt 0:00:09]} e5 {[%emt 0:00:31]} 2. Nf3 {[%emt 0:00:07]} Nc6 {[%emt 0:00:05]} 3. Bc4 {[%emt 0:00:19]} Bc5 {[%emt 0:00:09]} 4. c3 {[%emt 0:00:25]} Nf6 {[%emt 0:00:11]} 5. d3 {[%emt 0:00:07]} d6 {[%emt 0:00:13]} 6. b4 {[%emt 0:00:35]} Bb6 {[%emt 0:00:07]} 7. a4 {[%emt 0:00:07]} a5 {[%emt 0:01:08]} 8. b5 {[%emt 0:00:08]} Ne7 {[%emt 0:00:11]} 9. O-O {[%emt 0:00:08]} Ng6 {[%emt 0:03:14]} 10. Nbd2 {[%emt 0:00:13]} O-O {[%emt 0:02:02]} 11. Bb3 {[%emt 0:00:07]} c6 {[%emt 0:10:12]} 12. Nc4 {[%emt 0:00:13] C54: Giuoco Piano: 4 c3 Nf6, main lines with 5 d4 and 5 d3.} Bc7 {[%emt 0:02:03]} 13. Bg5 $5 {[%emt 0:00:08][%mdl 4] [#] Exploring less charted territory.} d5 $146 {[%emt 0:19:14]} ({Predecessor:} 13... h6 14. Bxf6 Qxf6 15. Ne3 Bb6 16. d4 Nf4 17. Re1 cxb5 18. axb5 exd4 19. cxd4 Be6 20. Bxe6 fxe6 {½-½ Mytsko,V (2306)-Kos,I (2317) SLO-SWE email 2019 [8]}) 14. Bxf6 {[%emt 0:28:05] White is slightly better.} Qxf6 {[%emt 0:01:39]} 15. exd5 {[%emt 0:10:08]} Bg4 $1 {[%emt 0:02:48]} (15... cxd5 16. Ne3 $16) 16. Ne3 {[%emt 0:20:19]} Bh5 {[%emt 0:03:17] ...Nh4 would be deadly.} 17. dxc6 {[%emt 0:03:50]} bxc6 {[%emt 0:12:33]} 18. bxc6 {[%emt 0:01:54]} e4 {[%emt 0:24:45][%mdl 64] Discovered Attack} (18... Nh4 $5 {[%cal Rh4f3]} 19. Bd5 Qf4 $11) 19. dxe4 {[%emt 0:02:14]} Nh4 {[%emt 0:03:54][%cal Rh4f3]} 20. Nd5 {[%emt 0:01:33]} Qh6 {[%emt 0:01:12]} 21. Re1 {[%emt 0:02:24]} Bxh2+ {[%emt 0:05:14]} 22. Kf1 {[%emt 0:00:38]} (22. Kh1 $2 Bf4 23. Kg1 Bxf3 $19) 22... Ra7 {[%emt 0:02:31]} (22... Kh8 $5 {[%cal Rf7f5]}) 23. Qd3 {[%emt 0:14:24]} ({Wrong is} 23. Qd4 $2 Nxf3 24. gxf3 (24. Qxa7 $2 Nd2#) 24... Bxf3 $19) 23... Bxf3 {[%emt 0:00:43]} 24. gxf3 {[%emt 0:00:06][%cal Bg2f3,Bf3f4,Bf4f5][%mdl 32] And now Ke2 would win.} Qxc6 {[%emt 0:00:56]} 25. f4 {[%emt 0:06:16] Black must now prevent Qh3.} Qh6 {[%emt 0:04:23][%cal Oa7b7]} (25... Qg6 $2 26. Qh3 Qh6 27. Qxh2 $18) 26. f5 {[%emt 0:03:15]} Rb7 {[%emt 0:00:06]} 27. Rab1 {[%emt 0:02:32]} ({Much worse is} 27. Qh3 Rxb3 28. Qxh2 Qa6+ 29. Re2 Rb2 $17) 27... Rfb8 {[%emt 0:00:26][%cal Oh6g5]} 28. Bc2 {[%emt 0:05:36]} Qg5 {[%emt 0:01:55]} ({Black should try} 28... Rxb1 $14 29. Rxb1 Rxb1+ 30. Bxb1 Qc1+ 31. Ke2 h6) 29. Rxb7 $16 {[%emt 0:00:16]} Rxb7 {[%emt 0:00:39] [#]} 30. e5 $1 {[%emt 0:04:52][%cal Od5e7] Intending Ne7+! and mate. The board is on fire.} ({But not} 30. Qh3 $6 Rb2 31. Ne3 (31. Qxh2 Nf3 $17) 31... Bf4 $14) 30... Rb2 $2 {[%emt 0:05:48][%mdl 8192] [#]} (30... Qg2+ $16 31. Ke2 g6) 31. Ne7+ $1 {[%emt 0:01:04][%mdl 576] Promotion} Qxe7 {[%emt 0:00:20] [#]} 32. f6 $1 {[%emt 0:00:05][%mdl 576] Discovered Attack. Artfully played by Gukesh D.   Weighted Error Value: White=0.05 (flawless) /Black=0.27 (precise)} 1-0

[Event "WR Chess Masters 2023"]
[Site "Duesseldorf"]
[Date "2023.02.18"]
[Round "3.1"]
[White "Aronian, Levon"]
[Black "Abdusattorov, Nodirbek"]
[Result "1-0"]
[ECO "B76"]
[WhiteElo "2736"]
[BlackElo "2734"]
[Annotator "TA"]
[PlyCount "60"]
[EventDate "2023.02.16"]
[EventCountry "GER"]
[SourceTitle "playchess.com"]
[Source "ChessBase"]
[SourceQuality "1"]
[TimeControl "40/7200:20/3600:900+30"]

{[%evp 17,60,44,52,37,35,41,36,47,37,41,41,33,141,136,127,133,124,104,127,128,133,135,128,129,136,136,233,166,209,204,230,225,264,235,267,282,282,264,262,242,280,256,330,330,466]} 1. e4 {[%emt 0:00:04]} c5 {[%emt 0:00:35]} 2. Nf3 {[%emt 0:00:04]} d6 {[%emt 0:00:09]} 3. d4 {[%emt 0:00:05]} cxd4 {[%emt 0:00:34]} 4. Nxd4 {[%emt 0:00:04]} Nf6 {[%emt 0:00:06]} 5. Nc3 {[%emt 0:00:03]} g6 {[%emt 0:00:05]} 6. Be3 {[%emt 0:01:51]} Bg7 {[%emt 0:00:08]} 7. f3 {[%emt 0:00:14]} O-O {[%emt 0:00:08]} 8. Qd2 {[%emt 0:00:28]} Nc6 {[%emt 0:00:06]} 9. g4 {[%emt 0:00:38][%cal Bg2g4,Bg4g5][%mdl 32]} h5 {[%emt 0:05:50]} 10. g5 {[%emt 0:03:34] B76: Sicilian Dragon: Yugoslav Attack, 9 g4 and 9 0-0-0.} Ne8 {[%emt 0:07:46] [#]} 11. O-O-O $5 $146 {[%emt 0:02:13][%mdl 8] An interesting novelty.} ({Predecessor:} 11. f4 Bd7 12. f5 Rc8 13. O-O-O Ne5 14. Nd5 Nc7 15. Nf4 Re8 16. h4 Bc6 17. Nxc6 bxc6 {0-1 Herrera,J-Jimenez Martinez,A (1778) NCA-ch Managua 2011 (8)}) 11... Qa5 {[%emt 0:05:26]} 12. Nb3 {[%emt 0:07:17] White is slightly better.} Bxc3 {[%emt 0:01:47]} 13. Nxa5 {[%emt 0:00:34]} Bxd2+ {[%emt 0:00:16]} 14. Bxd2 {[%emt 0:00:05]} f6 {[%emt 0:22:59]} (14... Nd4 $14) 15. Nxc6 $16 {[%emt 0:06:17]} bxc6 {[%emt 0:00:05]} 16. gxf6 {[%emt 0:00:08]} Nxf6 {[%emt 0:03:05]} 17. Bh6 {[%emt 0:02:34]} Re8 {[%emt 0:02:06]} 18. Bc4+ {[%emt 0:01:13]} Kh7 {[%emt 0:00:07]} 19. Bg5 {[%emt 0:00:05][%cal Bh6g5,Bg5d2,Bd2c3][%mdl 32] Threatens to win with Bxf6.} Kg7 {[%emt 0:04:23]} 20. Rhg1 {[%emt 0:01:43] White has more active pieces. The black rooks are badly placed.} a5 {[%emt 0:09:00]} 21. Rg2 {[%emt 0:07:20] Rdg1 is the strong threat.} Nd7 {[%emt 0:08:04]} (21... d5 $16) 22. Rdg1 {[%emt 0:02:18][%cal Og5e7] [#] And now Bxe7! would win.} Ba6 {[%emt 0:10:22]} 23. Bb3 {[%emt 0:03:19] A strong pair of Bishops.} Nf8 {[%emt 0:05:22]} 24. Bd2 {[%emt 0:01:50]} Bc8 {[%emt 0:03:06]} 25. a4 {[%emt 0:01:55]} e5 {[%emt 0:02:55] [#]} 26. Bc3 $1 {[%emt 0:01:48]} Be6 {[%emt 0:01:51]} 27. Rd2 {[%emt 0:01:04]} Bxb3 {[%emt 0:01:57]} 28. cxb3 {[%emt 0:00:09]} Re6 {[%emt 0:03:04]} 29. Rgd1 {[%emt 0:00:18]} Rd8 {[%emt 0:00:39]} 30. f4 {[%emt 0:01:08]} ({Don't play} 30. Bxa5 Rd7 31. Bb4 c5 $18) 30... g5 {[%emt 0:03:14] White took control after the opening.   Weighted Error Value: White=0.07 (flawless) /Black=0.30} (30... Rde8 {was necessary.} 31. Rxd6 Kf7 32. fxe5 Ra8) 1-0

[Event "WR Chess Masters 2023"]
[Site "Duesseldorf"]
[Date "2023.02.18"]
[Round "3.2"]
[White "So, Wesley"]
[Black "Gukesh D"]
[Result "1/2-1/2"]
[ECO "D20"]
[WhiteElo "2766"]
[BlackElo "2718"]
[Annotator "TA"]
[PlyCount "65"]
[EventDate "2023.02.16"]
[EventCountry "GER"]
[SourceTitle "playchess.com"]
[Source "ChessBase"]
[SourceQuality "1"]
[TimeControl "40/7200:20/3600:900+30"]

{[%evp 10,65,31,22,30,27,41,38,32,25,41,13,16,7,12,4,13,33,28,0,7,0,0,0,0,0,0,0,0,0,0,0,0,0,2,0,16,12,20,8,8,0,52,0,0,0,0,0,0,0,0,0,0,0,0,0,0,0]} 1. d4 {[%emt 0:00:07]} d5 {[%emt 0:00:19][%cal Bd7d5,Bd5c4][%mdl 32]} 2. c4 {[%emt 0:00:12]} dxc4 {[%emt 0:00:07]} 3. e4 {[%emt 0:00:22]} e5 {[%emt 0:00:09]} 4. Nf3 {[%emt 0:00:09]} Bb4+ {[%emt 0:00:21]} 5. Nc3 {[%emt 0:08:00]} exd4 {[%emt 0:00:14]} 6. Nxd4 {[%emt 0:00:02] With the idea Qa4+.} Nd7 $1 {[%emt 0:00:06][%mdl 4] now scores much better than the old 6...Ne7. D20: Queen's Gambit Accepted: 3 e3 and 3 e4.} 7. Bxc4 {[%emt 0:00:06] [#] Hoping for 0-0.} Ngf6 $1 {[%emt 0:00:05]} 8. f3 {[%emt 0:02:03]} O-O {[%emt 0:00:09] White is slightly better.} 9. Be2 {[%emt 0:01:06]} Ne5 {[%emt 0:02:05]} 10. Be3 {[%emt 0:08:30]} Qe7 {[%emt 0:06:52]} 11. O-O {[%emt 0:19:18]} c5 {[%emt 0:03:06]} 12. Nc2 {[%emt 0:12:07]} Bxc3 {[%emt 0:00:44]} 13. bxc3 {[%emt 0:00:03]} Be6 {[%emt 0:00:14] [#]} 14. Na3 $146 {[%emt 0:05:52]} ({Predecessor:} 14. Qe1 Bc4 15. Bg5 h6 16. Bh4 Bxe2 17. Qxe2 Ng6 18. Bf2 Rad8 19. Qb5 b6 20. Ne3 {1-0 Pultinevicius,P (2539)-Nyysti,S (2363) Olympiad-44 Chennai 2022 (5.3)}) 14... Rfd8 {[%emt 0:07:32]} 15. Qc2 {[%emt 0:00:13]} a6 {[%emt 0:06:11]} 16. c4 {[%emt 0:07:46]} Nc6 {[%emt 0:10:00]} 17. Qb2 {[%emt 0:10:58]} Nd4 {[%emt 0:00:29]} 18. Rfd1 {[%emt 0:01:59][%cal Re3d4]} Nxe2+ {[%emt 0:07:11]} 19. Qxe2 {[%emt 0:00:12]} Rxd1+ {[%emt 0:00:13]} 20. Rxd1 {[%emt 0:00:14]} Nd7 {[%emt 0:05:01]} 21. Qb2 {[%emt 0:04:42]} b5 {[%emt 0:01:41]} 22. cxb5 {[%emt 0:02:30]} axb5 {[%emt 0:00:08]} 23. Nxb5 {[%emt 0:00:50]} Rxa2 {[%emt 0:00:07]} 24. Qc3 {[%emt 0:02:00]} h6 {[%emt 0:02:16]} 25. Nc7 {[%emt 0:08:27]} Kh7 {[%emt 0:30:50]} (25... c4 $11) 26. Bf2 {[%emt 0:01:54]} ({White should play} 26. Nxe6 $14 Qxe6 27. Bxc5) 26... c4 $11 {[%emt 0:02:38] The position is equal.} 27. Qd4 {[%emt 0:01:10]} Nf8 {[%emt 0:09:10]} 28. Nd5 {[%emt 0:06:20]} Bxd5 {[%emt 0:00:22]} 29. Qxd5 {[%emt 0:00:03]} (29. exd5 $5 {[%cal Rd4c4]} Qe2 30. Re1 $11) 29... Qe6 {[%emt 0:00:51]} 30. Rc1 {[%emt 0:00:42]} Qxd5 {[%emt 0:01:36]} 31. exd5 {[%emt 0:00:03]} Rd2 {[%emt 0:00:07]} 32. h4 {[%emt 0:00:27]} Rxd5 {[%emt 0:00:08]} 33. Rxc4 {[%emt 0:00:05] Weighted Error Value: White=0.07 (flawless) /Black=0.04 (flawless)} 1/2-1/2

[Event "WR Chess Masters 2023"]
[Site "Duesseldorf"]
[Date "2023.02.18"]
[Round "3.3"]
[White "Nepomniachtchi, Ian"]
[Black "Giri, Anish"]
[Result "1/2-1/2"]
[ECO "A28"]
[WhiteElo "2793"]
[BlackElo "2780"]
[Annotator "TA"]
[PlyCount "73"]
[EventDate "2023.02.16"]
[EventCountry "GER"]
[SourceTitle "playchess.com"]
[Source "ChessBase"]
[SourceQuality "1"]
[TimeControl "40/7200:20/3600:900+30"]

{[%evp 11,73,-8,0,0,0,1,2,0,7,12,4,14,15,18,17,0,0,-8,-12,-2,0,-17,-11,0,0,0,12,13,10,-21,-16,-61,-56,-58,-46,-59,-32,-70,-62,-85,-85,-79,-48,-93,-83,-91,-64,-58,-70,-68,-52,-51,-33,-82,-41,-40,0,0,0,0,0,0,0,0]} 1. c4 {[%emt 0:00:16]} Nf6 {[%emt 0:00:14]} 2. Nc3 {[%emt 0:00:06]} e5 {[%emt 0:00:08]} 3. Nf3 {[%emt 0:00:09]} Nc6 {[%emt 0:00:05]} 4. a3 {[%emt 0:00:04]} d5 {[%emt 0:00:27]} 5. cxd5 {[%emt 0:00:07]} Nxd5 {[%emt 0:00:04]} 6. Qc2 {[%emt 0:00:09]} Nxc3 $1 {[%emt 0:00:40][%mdl 4] is now more promising than 6...Be7.} 7. bxc3 {[%emt 0:00:14] [#] A28: English Opening: Four Knights Variation.} Qd6 $146 {[%emt 0:05:30]} ({Predecessor:} 7... Bd6 8. g3 O-O 9. Bg2 Re8 10. d3 Bf5 11. O-O e4 12. Nh4 exd3 13. exd3 Bd7 14. Rb1 b6 {1-0 Firouzja,A (2778)-Aronian,L (2775) Saint Louis Blitz 2022 (13)}) 8. g3 {[%emt 0:00:15]} Qg6 {[%emt 0:26:16]} 9. d3 {[%emt 0:01:42]} Be7 {[%emt 0:14:17]} 10. Bg2 {[%emt 0:02:40]} O-O {[%emt 0:00:05]} 11. O-O {[%emt 0:03:24]} Rb8 {[%emt 0:01:23]} 12. a4 {[%emt 0:06:02]} b6 {[%emt 0:00:18]} 13. Nd2 {[%emt 0:05:30]} Na5 {[%emt 0:01:08]} 14. Bb2 {[%emt 0:06:47]} Bb7 {[%emt 0:03:59]} 15. Bxb7 {[%emt 0:03:41]} Rxb7 {[%emt 0:00:07]} 16. c4 {[%emt 0:00:30]} Nc6 {[%emt 0:00:19][%cal Ba5c6,Bc6b4,Bb4d5,Bd5f6,Bf6g4][%mdl 32]} 17. Nf3 {[%emt 0:02:27]} Bd6 {[%emt 0:01:43]} 18. a5 {[%emt 0:01:37][%mdl 64] [#] Deflection} bxa5 {[%emt 0:03:05]} 19. c5 {[%emt 0:12:10]} Bxc5 {[%emt 0:00:13][%mdl 64] Deflection} 20. Bxe5 {[%emt 0:02:45]} Bb6 {[%emt 0:02:12]} 21. Rfc1 {[%emt 0:08:56]} Nb4 {[%emt 0:03:11]} 22. Qc4 {[%emt 0:02:44]} c5 {[%emt 0:06:39]} 23. Bf4 {[%emt 0:03:05]} Re8 {[%emt 0:02:19] Dodges Qe4} (23... Re7 $5 {[%cal Re7e2]} 24. Nh4 Qf6 $15) 24. Be3 {[%emt 0:00:29]} Rbe7 {[%emt 0:00:53]} 25. Nd2 {[%emt 0:03:55]} Qh5 {[%emt 0:08:23]} 26. Re1 {[%emt 0:00:15]} Nd5 {[%emt 0:00:17]} (26... h6 {looks sharper.} 27. Ne4 Qh3 28. Rf1 Re5) 27. Nf1 {[%emt 0:01:01]} h6 {[%emt 0:04:09]} 28. Rac1 {[%emt 0:00:58]} Nf6 {[%emt 0:00:28]} 29. Qa4 {[%emt 0:03:29]} Ng4 {[%emt 0:05:16]} 30. Rc4 {[%emt 0:00:37]} f5 {[%emt 0:00:33]} (30... Ne5 $5 {[%cal Re5c4]} 31. Rh4 Qg6 $17) 31. Qa2 {[%emt 0:09:11]} Qf7 {[%emt 0:00:41]} 32. Ra4 {[%emt 0:05:44]} (32. Rc2 $15 {deserves consideration.}) 32... Qxa2 {[%emt 0:00:53]} 33. Rxa2 {[%emt 0:00:04]} c4 {[%emt 0:00:13]} 34. dxc4 {[%emt 0:01:35] The position is equal.} Nxe3 {[%emt 0:00:12]} 35. Nxe3 {[%emt 0:00:06]} Bxe3 {[%emt 0:00:02]} 36. fxe3 {[%emt 0:00:07]} Rxe3 {[%emt 0:00:02]} 37. Rxa5 {[%emt 0:00:05] Weighted Error Value: White=0.11 (very precise) /Black=0.09 (flawless)} 1/2-1/2

[Event "WR Chess Masters 2023"]
[Site "Duesseldorf"]
[Date "2023.02.18"]
[Round "3.4"]
[White "Esipenko, Andrey"]
[Black "Duda, Jan-Krzysztof"]
[Result "1/2-1/2"]
[ECO "E04"]
[WhiteElo "2675"]
[BlackElo "2729"]
[Annotator "TA"]
[PlyCount "87"]
[EventDate "2023.02.16"]
[EventCountry "GER"]
[SourceTitle "playchess.com"]
[Source "ChessBase"]
[SourceQuality "1"]
[TimeControl "40/7200:20/3600:900+30"]

{[%evp 19,87,0,8,0,7,4,10,22,45,19,27,23,19,34,60,25,35,23,22,22,36,20,32,35,35,28,35,41,35,37,44,50,52,29,36,29,34,36,37,29,29,29,38,38,44,38,38,39,37,30,29,12,8,8,20,17,20,13,25,22,45,39,40,39,40,39,58,58,58,14]} 1. d4 {[%emt 0:00:07]} Nf6 {[%emt 0:00:14]} 2. c4 {[%emt 0:00:08]} e6 {[%emt 0:00:05]} 3. Nf3 {[%emt 0:00:17]} d5 {[%emt 0:00:07][%cal Bd7d5,Bd5c4][%mdl 32]} 4. g3 {[%emt 0:00:14]} dxc4 {[%emt 0:00:08]} 5. Bg2 {[%emt 0:00:08]} c5 {[%emt 0:00:07]} 6. O-O {[%emt 0:00:13]} Nc6 {[%emt 0:00:05]} 7. Qa4 {[%emt 0:00:28]} Bd7 {[%emt 0:00:09]} 8. dxc5 {[%emt 0:00:17]} Bxc5 {[%emt 0:00:25]} 9. Qxc4 {[%emt 0:00:10]} Be7 {[%emt 0:00:07]} 10. Nc3 {[%emt 0:00:19]} O-O {[%emt 0:00:24]} 11. e4 {[%emt 0:00:19] E04: Open Catalan: 5 Nf3.} Rc8 {[%emt 0:07:27]} 12. Qe2 {[%emt 0:00:53]} Qa5 {[%emt 0:00:49]} 13. Rd1 {[%emt 0:12:14] The position is equal.} Rfd8 {[%emt 0:04:20] [#]} 14. Bd2 $146 {[%emt 0:07:44]} (14. e5 $5 {[%cal Re5f6]} Nd5 15. Nxd5 exd5 16. Ng5 $14) ({Predecessor:} 14. e5 Nd5 15. Nxd5 exd5 16. Ng5 Be8 {½-½ Baars,N (1712)-Ascic,P (2252) BL2-Nord 2122 2022 (10.6)}) 14... Qb6 {[%emt 0:09:52]} 15. Be3 {[%emt 0:01:36]} Qa5 {[%emt 0:00:18]} 16. Nd2 {[%emt 0:04:24]} Be8 {[%emt 0:13:45]} 17. Nb3 {[%emt 0:06:10] Inhibits Nd4.} (17. Nc4 $5 {[%cal Rc4a5]} Qc7 18. b3 $14) 17... Qb4 {[%emt 0:01:41]} 18. f4 {[%emt 0:08:38]} Nd7 {[%emt 0:07:40][%cal Bf6d7,Bd7b6,Bb6c4][%mdl 32]} 19. e5 {[%emt 0:04:08]} Nb6 {[%emt 0:24:59]} 20. Bf2 {[%emt 0:15:05]} a5 {[%emt 0:02:40]} 21. Be1 {[%emt 0:15:08]} a4 {[%emt 0:08:03] [#]} 22. Nd5 $1 {[%emt 0:02:33][%mdl 64] Discovered Attack} Qc4 {[%emt 0:00:48]} 23. Qxc4 {[%emt 0:01:36]} Nxc4 {[%emt 0:00:08]} 24. Nxe7+ {[%emt 0:00:33]} Nxe7 {[%emt 0:00:05]} 25. Rxd8 {[%emt 0:00:34]} Rxd8 {[%emt 0:00:05]} 26. Na5 {[%emt 0:00:17]} Nxa5 {[%emt 0:14:11]} 27. Bxa5 {[%emt 0:00:11]} Ra8 {[%emt 0:00:04]} 28. Bb4 {[%emt 0:04:09]} (28. Bxb7 $2 {too greedy.} Rxa5 29. Bf3 Rb5 $19) 28... Nd5 {[%emt 0:00:11]} 29. Bd2 {[%emt 0:03:42]} Rc8 {[%emt 0:03:35]} 30. Rc1 {[%emt 0:00:25] Inhibits Rc2.} Rxc1+ {[%emt 0:00:06]} 31. Bxc1 $11 {[%emt 0:00:03][%mdl 4096] Endgame KBB-KBN} Bc6 {[%emt 0:00:07]} 32. Bd2 {[%emt 0:02:59]} h5 {[%emt 0:01:14]} 33. Kf2 {[%emt 0:01:08]} Kf8 {[%emt 0:00:43]} 34. h3 {[%emt 0:05:34]} Ke8 {[%emt 0:02:12]} 35. g4 {[%emt 0:01:37]} hxg4 {[%emt 0:01:36]} 36. hxg4 {[%emt 0:00:08]} Kd7 {[%emt 0:05:26]} 37. Bf1 {[%emt 0:01:35]} Nc7 {[%emt 0:00:25]} 38. Bd3 {[%emt 0:07:10]} Bd5 {[%emt 0:00:29]} 39. a3 {[%emt 0:00:42]} Bb3 {[%emt 0:01:37]} 40. f5 {[%emt 0:00:00] White is slightly better.} Bd1 {[%emt 0:00:00]} 41. Kg3 {[%emt 0:04:51]} Nd5 {[%emt 0:08:35]} 42. Kh4 {[%emt 0:22:52]} f6 {[%emt 0:06:52]} 43. exf6 {[%emt 0:02:49]} gxf6 {[%emt 0:00:22]} 44. fxe6+ {[%emt 0:05:06] Weighted Error Value: White=0.05 (flawless) /Black=0.05 (flawless)} 1/2-1/2

[Event "WR Chess Masters 2023"]
[Site "Duesseldorf"]
[Date "2023.02.18"]
[Round "3.5"]
[White "Praggnanandhaa R"]
[Black "Keymer, Vincent"]
[Result "1-0"]
[ECO "C84"]
[WhiteElo "2690"]
[BlackElo "2690"]
[Annotator "TA"]
[PlyCount "85"]
[EventDate "2023.02.16"]
[EventCountry "GER"]
[SourceTitle "playchess.com"]
[Source "ChessBase"]
[SourceQuality "1"]
[TimeControl "40/7200:20/3600:900+30"]

{[%evp 13,85,16,21,0,14,13,15,18,22,12,14,4,25,0,0,0,0,0,12,4,9,-9,18,10,23,33,33,29,35,39,38,42,39,5,2,0,38,32,43,42,56,53,84,85,116,87,155,157,289,296,278,206,200,208,202,196,175,188,239,179,223,226,248,250,462,472,929,929,881,881,2126,793,1232,1213]} 1. e4 {[%emt 0:00:26]} e5 {[%emt 0:00:05]} 2. Nf3 {[%emt 0:00:05]} Nc6 {[%emt 0:00:03]} 3. Bb5 {[%emt 0:00:14]} a6 {[%emt 0:00:04]} 4. Ba4 {[%emt 0:00:05]} Nf6 {[%emt 0:00:04]} 5. O-O {[%emt 0:00:07]} Be7 {[%emt 0:00:05]} 6. d3 {[%emt 0:00:20]} b5 {[%emt 0:00:29]} 7. Bb3 {[%emt 0:00:05]} d6 {[%emt 0:00:03]} 8. Bd2 {[%emt 0:00:09] C84: Closed Ruy Lopez: Unusual White 6th moves.} O-O {[%emt 0:00:52]} 9. h3 {[%emt 0:00:05]} h6 {[%emt 0:00:22]} 10. Re1 {[%emt 0:00:47] The position is equal.} Rb8 {[%emt 0:00:04]} 11. a3 {[%emt 0:00:50]} Re8 {[%emt 0:00:45]} 12. Nc3 {[%emt 0:00:43]} Bf8 {[%emt 0:00:04]} 13. Nd5 {[%emt 0:04:33]} Nxd5 {[%emt 0:00:15]} 14. Bxd5 {[%emt 0:00:10]} Ne7 {[%emt 0:00:04]} 15. Bb3 {[%emt 0:00:18] [#]} c5 $146 {[%emt 0:00:19]} ({Predecessor:} 15... Ng6 16. a4 Be6 17. Bxe6 Rxe6 18. axb5 axb5 19. Qe2 d5 20. exd5 Qxd5 21. Qe4 Qxe4 22. dxe4 {0-1 Caruana,F (2847)-Carlsen,M (2830) Wch Blitz Almaty 2022 (17)}) 16. a4 {[%emt 0:11:49]} Bb7 {[%emt 0:00:18]} 17. Nh4 {[%emt 0:09:42]} Qc7 {[%emt 0:18:12]} 18. axb5 {[%emt 0:09:50]} axb5 {[%emt 0:00:06]} 19. Qg4 {[%emt 0:01:42]} Qc8 {[%emt 0:14:31]} 20. Qg3 {[%emt 0:12:39]} (20. Bxh6 $2 {perishes.} Qxg4 21. hxg4 gxh6 $19) 20... c4 {[%emt 0:00:22]} 21. dxc4 {[%emt 0:01:27]} bxc4 {[%emt 0:00:05]} 22. Ba4 {[%emt 0:00:45]} Bc6 {[%emt 0:01:40]} 23. Bxh6 {[%emt 0:06:53]} Rxb2 {[%emt 0:07:37]} 24. Bc1 {[%emt 0:06:42]} Rb7 {[%emt 0:18:38]} 25. Bg5 $36 {[%emt 0:01:31][%mdl 2048] White is more active.} Bxa4 {[%emt 0:00:53]} 26. Rxa4 {[%emt 0:01:34]} Qc6 {[%emt 0:01:11]} 27. Ra5 {[%emt 0:02:44]} Qc7 {[%emt 0:09:50]} 28. Ra6 {[%emt 0:04:38] Black is on the road to losing.} Nc6 {[%emt 0:02:20]} 29. c3 {[%emt 0:06:45] Dodges Nb4. White is more active.} Rb3 {[%emt 0:04:27]} (29... Ne7 $142) 30. Nf5 $16 {[%emt 0:03:09][%cal Of5g7] Hoping for Nxg7!} Nd4 {[%emt 0:03:43] [#]} (30... Re6 $16) 31. Bf6 $1 $18 {[%emt 0:03:01][%cal Rf5g7]} Ne6 {[%emt 0:11:41] [#]} (31... Nxf5 32. exf5 Qb7 33. Bxg7 $18 (33. Rxd6 Rb1 $18)) 32. Rxd6 $3 {[%emt 0:09:18][%mdl 576] aiming for Rd5. Deflection} Rxc3 {[%emt 0:01:09]} (32... Bxd6 $2 33. Nxg7 Nf4 34. Nxe8+ Ng6 35. Nxc7 $18) 33. Qxc3 {[%emt 0:01:57]} Bxd6 {[%emt 0:00:08]} 34. Qg3 {[%emt 0:00:19][%cal Rf5g7]} Bf8 {[%emt 0:01:32]} 35. Bxe5 {[%emt 0:00:08]} Qd7 {[%emt 0:01:51]} (35... Qa7 $142 36. Rc1 Rc8) 36. Kh2 {[%emt 0:03:00]} Qb7 {[%emt 0:10:41]} 37. Qg4 {[%emt 0:04:51] Re3 would be deadly.} Rd8 {[%emt 0:00:28]} 38. Rc1 {[%emt 0:01:07]} Qa7 $2 {[%emt 0:01:35]} (38... Rc8 39. Ne3 g6) 39. Rc2 {[%emt 0:01:27] White is clearly winning.} ({Weaker is} 39. Rxc4 Qxf2 40. Nh6+ Kh7 $18) 39... Qc5 {[%emt 0:02:21]} (39... Qd7 $142 40. Rxc4 Qd2) 40. Nh6+ {[%emt 0:00:00][%mdl 64] Deflection} Kh7 {[%emt 0:00:00]} 41. Nxf7 {[%emt 0:02:30]} Re8 {[%emt 0:00:00]} 42. f4 {[%emt 0:02:22]} (42. Rc3 $142 Qxf2 43. Rf3 Qxf3 44. gxf3) 42... Kg8 {[%emt 0:04:49]} 43. Qg6 {[%emt 0:01:35] Weighted Error Value: White=0.12 (very precise) /Black=0.29 (precise)} 1-0